[Event "Gibraltar Masters 18th"]
[Site "Gibraltar"]
[Date "2020.01.30"]
[Round "10.29"]
[White "Batsiashvili, Nino"]
[Black "Sanal, Vahap"]
[Result "0-1"]
[ECO "A47"]
[WhiteElo "2456"]
[BlackElo "2569"]
[PlyCount "110"]
[EventDate "2020.01.21"]
[EventType "swiss"]
[EventRounds "10"]
[EventCountry "GGB"]
[SourceTitle "BritBase"]
[Source "John Saunders"]
[SourceDate "2021.06.05"]
[SourceVersion "1"]
[SourceVersionDate "2021.06.05"]
[SourceQuality "1"]
[TimeControl "40/100:0"]
[WhiteClock "0:02:39"]
[BlackClock "0:46:16"]

1. d4 {[%emt 0:00:00]} Nf6 {[%emt 0:00:00]} 2. Nf3 {[%emt 0:00:00]} e6 {
[%emt 0:00:00]} 3. Bf4 {[%emt 0:00:00]} c5 {[%emt 0:00:00]} 4. e3 {[%emt 0:00:
00]} b6 {[%emt 0:00:00]} 5. Bd3 {[%emt 0:00:00]} Bb7 {[%emt 0:00:00]} 6. Nbd2 {
[%emt 0:00:00]} Be7 {[%emt 0:00:00]} 7. h3 {[%emt 0:00:00]} O-O {[%emt 0:00:00]
} 8. O-O {[%emt 0:00:00]} cxd4 {[%emt 0:00:00]} 9. exd4 {[%emt 0:00:00]} d6 {
[%emt 0:00:00]} 10. Bh2 {[%emt 0:00:00]} Nbd7 {[%emt 0:00:00]} 11. a4 {[%emt 0:
00:00]} a6 {[%emt 0:00:00]} 12. a5 {[%emt 0:00:00]} b5 {[%emt 0:00:00]} 13. c4
{[%emt 0:00:00]} bxc4 {[%emt 0:00:00]} 14. Nxc4 {[%emt 0:00:00]} Ne8 {[%emt 0:
00:00]} 15. Qe2 {[%emt 0:00:00]} Ndf6 {[%emt 0:00:00]} 16. Nb6 {[%emt 0:00:00]}
Ra7 {[%emt 0:00:00]} 17. Rfc1 {[%emt 0:00:00]} Nc7 {[%emt 0:00:00]} 18. Ra3 {
[%emt 0:00:00]} Ncd5 {[%emt 0:00:00]} 19. Rb3 {[%emt 0:00:00]} Nd7 {[%emt 0:00:
00]} 20. Nc4 {[%emt 0:00:00]} N7f6 {[%emt 0:00:00]} 21. Nfd2 {[%emt 0:00:00]}
g6 {[%emt 0:00:00]} 22. Nb6 {[%emt 0:00:00]} Nh5 {[%emt 0:00:00]} 23. Nxd5 {
[%emt 0:00:00]} Bxd5 {[%emt 0:00:00]} 24. Rb6 {[%emt 0:00:00]} Bg5 {[%emt 0:00:
00]} 25. Rc3 {[%emt 0:00:00]} Nf4 {[%emt 0:00:00]} 26. Bxf4 {[%emt 0:00:00]}
Bxf4 {[%emt 0:00:00]} 27. Nf3 {[%emt 0:00:00]} Bxf3 {[%emt 0:00:00]} 28. Qxf3 {
[%emt 0:00:00]} Bd2 {[%emt 0:00:00]} 29. Rcc6 {[%emt 0:00:00]} Bxa5 {[%emt 0:
00:00]} 30. Rxa6 {[%emt 0:00:00]} Rxa6 {[%emt 0:00:00]} 31. Bxa6 {[%emt 0:00:
00]} d5 {[%emt 0:00:00]} 32. Qa3 {[%emt 0:00:00]} Qa8 {[%emt 0:00:00]} 33. Bb5
{[%emt 0:00:00]} Bd2 {[%emt 0:00:00]} 34. Rc2 {[%emt 0:00:00]} Bg5 {[%emt 0:00:
00]} 35. Bc6 {[%emt 0:00:00]} Qb8 {[%emt 0:00:00]} 36. Qc5 {[%emt 0:00:00]} Qf4
{[%emt 0:00:00]} 37. Qc3 {[%emt 0:00:00]} Bf6 {[%emt 0:00:00]} 38. Qe3 {
[%emt 0:00:00]} Qh4 {[%emt 0:00:00]} 39. g4 {[%emt 0:00:00]} Rb8 {[%emt 0:00:
00]} 40. Bd7 {[%emt 0:00:00]} Rb7 {[%emt 0:00:00]} 41. Bc8 {[%emt 0:00:00]} Rb6
{[%emt 0:00:00]} 42. Bd7 {[%emt 0:00:00]} Rb7 {[%emt 0:00:00]} 43. Bc8 {
[%emt 0:00:00]} Ra7 {[%emt 0:00:00]} 44. b4 {[%emt 0:00:00]} h5 {[%emt 0:00:00]
} 45. b5 {[%emt 0:00:00]} Ra1+ {[%emt 0:00:00]} 46. Kh2 {[%emt 0:00:00]} hxg4 {
[%emt 0:00:00]} 47. Bxe6 {[%emt 0:00:00]} fxe6 {[%emt 0:00:00]} 48. b6 {
[%emt 0:00:00]} Rb1 {[%emt 0:00:00]} 49. Rc8+ {[%emt 0:02:05]} Kf7 {[%emt 0:00:
00]} 50. Rc7+ {[%emt 0:00:00]} Be7 {[%emt 0:00:00]} 51. b7 {[%emt 0:00:19]}
Qxh3+ {[%emt 0:00:00]} 52. Qxh3 {[%emt 0:00:00]} gxh3 {[%emt 0:00:00]} 53. Kxh3
{[%emt 0:00:00]} Kf6 {[%emt 0:00:00]} 54. Kg4 {[%emt 0:00:00]} Bd6 {[%emt 0:00:
00]} 55. Rd7 {[%emt 0:00:00]} Bb8 {[%emt 0:00:00]} 0-1

[Event "Gibraltar Masters 18th"]
[Site "Gibraltar"]
[Date "2020.01.30"]
[Round "10.30"]
[White "Antipov, Mikhail Al."]
[Black "Song, Raymond"]
[Result "1/2-1/2"]
[ECO "B47"]
[WhiteElo "2562"]
[BlackElo "2478"]
[PlyCount "116"]
[EventDate "2020.01.21"]
[EventType "swiss"]
[EventRounds "10"]
[EventCountry "GGB"]
[SourceTitle "BritBase"]
[Source "John Saunders"]
[SourceDate "2021.06.05"]
[SourceVersion "1"]
[SourceVersionDate "2021.06.05"]
[SourceQuality "1"]
[TimeControl "40/100:0"]
[WhiteClock "0:04:36"]
[BlackClock "0:47:17"]

1. e4 {[%emt 0:00:00]} c5 {[%emt 0:00:00]} 2. Nc3 {[%emt 0:00:00]} e6 {[%emt 0:
00:00]} 3. Nf3 {[%emt 0:00:00]} Nc6 {[%emt 0:00:00]} 4. Bb5 {[%emt 0:00:00]}
Nd4 {[%emt 0:00:00]} 5. O-O {[%emt 0:00:00]} a6 {[%emt 0:00:00]} 6. Bd3 {
[%emt 0:00:00]} Nc6 {[%emt 0:00:00]} 7. Be2 {[%emt 0:00:00]} Qc7 {[%emt 0:00:
00]} 8. d4 {[%emt 0:00:00]} cxd4 {[%emt 0:00:00]} 9. Nxd4 {[%emt 0:00:00]} Nf6
{[%emt 0:00:00]} 10. Qd3 {[%emt 0:00:00]} Be7 {[%emt 0:00:00]} 11. Kh1 {
[%emt 0:00:00]} O-O {[%emt 0:00:00]} 12. f4 {[%emt 0:00:00]} Nxd4 {[%emt 0:00:
00]} 13. Qxd4 {[%emt 0:00:00]} d6 {[%emt 0:00:00]} 14. e5 {[%emt 0:00:00]} dxe5
{[%emt 0:00:00]} 15. fxe5 {[%emt 0:00:00]} Nd7 {[%emt 0:00:00]} 16. Bf4 {
[%emt 0:00:00]} b5 {[%emt 0:00:00]} 17. Rad1 {[%emt 0:00:00]} Rd8 {[%emt 0:00:
00]} 18. Bh5 {[%emt 0:00:00]} Bb7 {[%emt 0:00:00]} 19. Bg3 {[%emt 0:00:00]} g6
{[%emt 0:00:00]} 20. Bf3 {[%emt 0:00:00]} Bxf3 {[%emt 0:00:00]} 21. Rxf3 {
[%emt 0:00:00]} Nb6 {[%emt 0:00:00]} 22. Qf4 {[%emt 0:00:00]} Rxd1+ {[%emt 0:
00:00]} 23. Nxd1 {[%emt 0:00:00]} Bf8 {[%emt 0:00:00]} 24. Rf1 {[%emt 0:00:00]}
Rd8 {[%emt 0:00:00]} 25. Nf2 {[%emt 0:00:00]} Nd5 {[%emt 0:00:00]} 26. Qe4 {
[%emt 0:00:00]} Qc4 {[%emt 0:00:00]} 27. Qxc4 {[%emt 0:00:00]} bxc4 {[%emt 0:
00:00]} 28. Rd1 {[%emt 0:00:00]} Rb8 {[%emt 0:00:00]} 29. b3 {[%emt 0:00:00]}
Rc8 {[%emt 0:00:00]} 30. Ne4 {[%emt 0:00:00]} cxb3 {[%emt 0:00:00]} 31. cxb3 {
[%emt 0:00:00]} Be7 {[%emt 0:00:00]} 32. h3 {[%emt 0:00:00]} h5 {[%emt 0:00:00]
} 33. Bf2 {[%emt 0:00:00]} Rc2 {[%emt 0:00:00]} 34. Rd2 {[%emt 0:00:00]} Rc1+ {
[%emt 0:00:00]} 35. Kh2 {[%emt 0:00:00]} h4 {[%emt 0:00:00]} 36. g3 {[%emt 0:
00:00]} hxg3+ {[%emt 0:00:00]} 37. Kxg3 {[%emt 0:00:00]} Kg7 {[%emt 0:00:00]}
38. Kg4 {[%emt 0:00:00]} Bb4 {[%emt 0:00:00]} 39. Re2 {[%emt 0:00:00]} a5 {
[%emt 0:00:00]} 40. Bh4 {[%emt 0:00:31]} Rf1 {[%emt 0:00:00]} 41. Bg5 {[%emt 0:
00:00]} Be7 {[%emt 0:00:00]} 42. Bd2 {[%emt 0:00:00]} Bd8 {[%emt 0:00:00]} 43.
Nd6 {[%emt 0:00:00]} Rg1+ {[%emt 0:00:00]} 44. Kf3 {[%emt 0:00:00]} Bh4 {
[%emt 0:00:00]} 45. Ne4 {[%emt 0:00:00]} Bd8 {[%emt 0:00:00]} 46. Re1 {[%emt 0:
00:00]} Rxe1 {[%emt 0:00:00]} 47. Bxe1 {[%emt 0:00:00]} Nb4 {[%emt 0:00:00]}
48. a4 {[%emt 0:00:00]} Nc6 {[%emt 0:00:00]} 49. Bc3 {[%emt 0:00:00]} g5 {
[%emt 0:00:00]} 50. Nd2 {[%emt 0:00:00]} Kg6 {[%emt 0:00:00]} 51. Kg4 {[%emt 0:
00:00]} Bb6 {[%emt 0:00:00]} 52. Nf3 {[%emt 0:00:00]} Be3 {[%emt 0:00:00]} 53.
Be1 {[%emt 0:00:00]} Bc1 {[%emt 0:00:00]} 54. h4 {[%emt 0:00:00]} gxh4 {
[%emt 0:00:00]} 55. Bxh4 {[%emt 0:00:00]} Be3 {[%emt 0:00:00]} 56. Bf6 {
[%emt 0:00:00]} Bc1 {[%emt 0:00:00]} 57. Bh4 {[%emt 0:00:00]} Be3 {[%emt 0:00:
00]} 58. Bf6 {[%emt 0:00:00]} Bc1 {[%emt 0:00:00]} 1/2-1/2

[Event "Gibraltar Masters 18th"]
[Site "Gibraltar"]
[Date "2020.01.30"]
[Round "10.31"]
[White "Maze, Sebastien"]
[Black "Javakhishvili, Lela"]
[Result "1/2-1/2"]
[ECO "B09"]
[WhiteElo "2550"]
[BlackElo "2463"]
[PlyCount "30"]
[EventDate "2020.01.21"]
[EventType "swiss"]
[EventRounds "10"]
[EventCountry "GGB"]
[SourceTitle "BritBase"]
[Source "John Saunders"]
[SourceDate "2021.06.05"]
[SourceVersion "1"]
[SourceVersionDate "2021.06.05"]
[SourceQuality "1"]
[TimeControl "40/100:0"]
[WhiteClock "1:38:36"]
[BlackClock "1:40:13"]

1. e4 {[%emt 0:00:00]} d6 {[%emt 0:00:00]} 2. d4 {[%emt 0:00:00]} Nf6 {[%emt 0:
00:00]} 3. Nc3 {[%emt 0:00:00]} g6 {[%emt 0:00:00]} 4. f4 {[%emt 0:00:00]} Bg7
{[%emt 0:00:00]} 5. Nf3 {[%emt 0:00:00]} c5 {[%emt 0:00:00]} 6. Bb5+ {[%emt 0:
00:00]} Bd7 {[%emt 0:00:00]} 7. e5 {[%emt 0:00:00]} Ng4 {[%emt 0:00:00]} 8. e6
{[%emt 0:00:00]} fxe6 {[%emt 0:00:00]} 9. Ng5 {[%emt 0:00:00]} Bxb5 {[%emt 0:
00:00]} 10. Nxe6 {[%emt 0:00:00]} Bxd4 {[%emt 0:00:00]} 11. Nxd8 {[%emt 0:00:
00]} Bf2+ {[%emt 0:00:00]} 12. Kd2 {[%emt 0:00:00]} Be3+ {[%emt 0:00:00]} 13.
Ke1 {[%emt 0:00:00]} Bf2+ {[%emt 0:00:00]} 14. Kd2 {[%emt 0:00:00]} Be3+ {
[%emt 0:00:00]} 15. Ke1 {[%emt 0:00:00]} Bf2+ {[%emt 0:00:41]} 1/2-1/2

[Event "Gibraltar Masters 18th"]
[Site "Gibraltar"]
[Date "2020.01.30"]
[Round "10.32"]
[White "Ibarra Jerez, Jose Carlos"]
[Black "Chen, Qi B"]
[Result "1/2-1/2"]
[ECO "C45"]
[WhiteElo "2548"]
[BlackElo "2432"]
[PlyCount "32"]
[EventDate "2020.01.21"]
[EventType "swiss"]
[EventRounds "10"]
[EventCountry "GGB"]
[SourceTitle "BritBase"]
[Source "John Saunders"]
[SourceDate "2021.06.05"]
[SourceVersion "1"]
[SourceVersionDate "2021.06.05"]
[SourceQuality "1"]
[TimeControl "40/100:0"]
[WhiteClock "1:32:00"]
[BlackClock "1:37:22"]

1. e4 {[%emt 0:00:00]} e5 {[%emt 0:00:00]} 2. Nf3 {[%emt 0:00:00]} Nc6 {
[%emt 0:00:00]} 3. d4 {[%emt 0:00:00]} exd4 {[%emt 0:00:00]} 4. Nxd4 {[%emt 0:
00:00]} Bc5 {[%emt 0:00:00]} 5. Be3 {[%emt 0:00:00]} Qf6 {[%emt 0:00:00]} 6. c3
{[%emt 0:00:00]} Nge7 {[%emt 0:00:00]} 7. Bc4 {[%emt 0:00:00]} Ne5 {[%emt 0:00:
00]} 8. Be2 {[%emt 0:00:00]} Qg6 {[%emt 0:00:00]} 9. O-O {[%emt 0:00:00]} d6 {
[%emt 0:00:00]} 10. Kh1 {[%emt 0:00:00]} Qxe4 {[%emt 0:00:00]} 11. Nd2 {
[%emt 0:00:00]} Qg6 {[%emt 0:00:00]} 12. Bh5 {[%emt 0:00:00]} Qd3 {[%emt 0:00:
00]} 13. Be2 {[%emt 0:00:00]} Qg6 {[%emt 0:00:00]} 14. Bh5 {[%emt 0:00:00]} Qd3
{[%emt 0:00:00]} 15. Be2 {[%emt 0:00:00]} Qg6 {[%emt 0:00:00]} 16. Bh5 {
[%emt 0:00:00]} Qd3 {[%emt 0:00:00]} 1/2-1/2

[Event "Gibraltar Masters 18th"]
[Site "Gibraltar"]
[Date "2020.01.30"]
[Round "10.34"]
[White "Kovacevic, Blazimir"]
[Black "Tabatabaei, M.Amin"]
[Result "1/2-1/2"]
[ECO "B07"]
[WhiteElo "2451"]
[BlackElo "2638"]
[PlyCount "129"]
[EventDate "2020.01.21"]
[EventType "swiss"]
[EventRounds "10"]
[EventCountry "GGB"]
[SourceTitle "BritBase"]
[Source "John Saunders"]
[SourceDate "2021.06.05"]
[SourceVersion "1"]
[SourceVersionDate "2021.06.05"]
[SourceQuality "1"]
[TimeControl "40/100:0"]
[WhiteClock "0:04:39"]
[BlackClock "0:12:32"]

1. d4 {[%emt 0:00:00]} Nf6 {[%emt 0:00:00]} 2. Nf3 {[%emt 0:00:00]} g6 {
[%emt 0:00:00]} 3. Nbd2 {[%emt 0:00:00]} Bg7 {[%emt 0:00:00]} 4. e4 {[%emt 0:
00:00]} d6 {[%emt 0:00:00]} 5. Bd3 {[%emt 0:00:00]} O-O {[%emt 0:00:00]} 6. O-O
{[%emt 0:00:00]} Nc6 {[%emt 0:00:00]} 7. c3 {[%emt 0:00:00]} e5 {[%emt 0:00:00]
} 8. dxe5 {[%emt 0:00:00]} Nxe5 {[%emt 0:00:00]} 9. Nxe5 {[%emt 0:00:00]} dxe5
{[%emt 0:00:00]} 10. Nc4 {[%emt 0:00:00]} Nh5 {[%emt 0:00:00]} 11. g3 {[%emt 0:
00:00]} Qe7 {[%emt 0:00:00]} 12. Qe2 {[%emt 0:00:00]} Nf6 {[%emt 0:00:00]} 13.
Rd1 {[%emt 0:00:00]} a5 {[%emt 0:00:00]} 14. a4 {[%emt 0:00:00]} Bg4 {[%emt 0:
00:00]} 15. f3 {[%emt 0:00:00]} Bh3 {[%emt 0:00:00]} 16. Be3 {[%emt 0:00:00]}
b6 {[%emt 0:00:00]} 17. Rdb1 {[%emt 0:00:00]} Nh5 {[%emt 0:00:00]} 18. Qc2 {
[%emt 0:00:00]} f5 {[%emt 0:00:00]} 19. exf5 {[%emt 0:00:00]} gxf5 {[%emt 0:00:
00]} 20. Re1 {[%emt 0:00:00]} e4 {[%emt 0:00:00]} 21. Bf1 {[%emt 0:00:00]} Bxf1
{[%emt 0:00:00]} 22. Rxf1 {[%emt 0:00:00]} Qe6 {[%emt 0:00:00]} 23. Qb3 {
[%emt 0:00:00]} Kh8 {[%emt 0:00:00]} 24. f4 {[%emt 0:00:00]} Rg8 {[%emt 0:00:
00]} 25. Rf2 {[%emt 0:00:00]} Rad8 {[%emt 0:00:00]} 26. Nd2 {[%emt 0:00:00]}
Rd5 {[%emt 0:00:00]} 27. Nf1 {[%emt 0:00:00]} Qd7 {[%emt 0:00:00]} 28. Rd2 {
[%emt 0:00:00]} Rxd2 {[%emt 0:00:00]} 29. Bxd2 {[%emt 0:00:00]} Rd8 {[%emt 0:
00:00]} 30. Be3 {[%emt 0:00:00]} Bf6 {[%emt 0:00:00]} 31. Re1 {[%emt 0:00:00]}
Ng7 {[%emt 0:00:00]} 32. Re2 {[%emt 0:00:00]} Qe6 {[%emt 0:00:00]} 33. Qb5 {
[%emt 0:00:00]} h5 {[%emt 0:00:00]} 34. Rd2 {[%emt 0:00:00]} Rxd2 {[%emt 0:00:
00]} 35. Nxd2 {[%emt 0:00:00]} Kh7 {[%emt 0:00:00]} 36. Kf2 {[%emt 0:00:00]} h4
{[%emt 0:00:00]} 37. Kg2 {[%emt 0:00:00]} Kg6 {[%emt 0:00:00]} 38. Kh3 {
[%emt 0:00:00]} Qd6 {[%emt 0:00:00]} 39. Qe2 {[%emt 0:00:04]} hxg3 {[%emt 0:00:
53]} 40. hxg3 {[%emt 0:00:00]} Ne6 {[%emt 0:00:03]} 41. Qb5 {[%emt 0:00:00]}
Ng7 {[%emt 0:00:00]} 42. Qc4 {[%emt 0:00:00]} Qd7 {[%emt 0:00:00]} 43. Kg2 {
[%emt 0:00:00]} Be7 {[%emt 0:00:00]} 44. Nf1 {[%emt 0:00:00]} Ne6 {[%emt 0:00:
00]} 45. g4 {[%emt 0:00:00]} Bh4 {[%emt 0:00:00]} 46. Nd2 {[%emt 0:00:00]} Ng7
{[%emt 0:00:00]} 47. gxf5+ {[%emt 0:00:00]} Nxf5 {[%emt 0:00:00]} 48. Qxe4 {
[%emt 0:00:00]} Kh6 {[%emt 0:00:00]} 49. Nf3 {[%emt 0:00:00]} Qg7+ {[%emt 0:00:
00]} 50. Ng5 {[%emt 0:00:00]} Nxe3+ {[%emt 0:00:00]} 51. Qxe3 {[%emt 0:00:00]}
Bxg5 {[%emt 0:00:00]} 52. fxg5+ {[%emt 0:00:00]} Qxg5+ {[%emt 0:00:00]} 53. Kf3
{[%emt 0:00:00]} Kg6 {[%emt 0:00:00]} 54. Qxg5+ Kxg5 {[%emt 0:00:00]} 55. Ke4 {
[%emt 0:00:00]} Kf6 {[%emt 0:00:00]} 56. Kd5 {[%emt 0:00:00]} Ke7 {[%emt 0:00:
00]} 57. Kc6 {[%emt 0:00:00]} Kd8 {[%emt 0:00:00]} 58. c4 {[%emt 0:00:00]} Kc8
{[%emt 0:00:00]} 59. c5 {[%emt 0:00:00]} bxc5 {[%emt 0:00:00]} 60. Kxc5 {
[%emt 0:00:00]} Kd7 {[%emt 0:00:00]} 61. Kb5 {[%emt 0:00:00]} Kd6 {[%emt 0:00:
00]} 62. Kxa5 {[%emt 0:00:00]} Kc5 {[%emt 0:00:00]} 63. b4+ {[%emt 0:00:00]}
Kc4 {[%emt 0:00:00]} 64. b5 {[%emt 0:00:00]} Kb3 {[%emt 0:00:00]} 65. b6 {
[%emt 0:00:00]} 1/2-1/2

[Event "Gibraltar Masters 18th"]
[Site "Gibraltar"]
[Date "2020.01.30"]
[Round "10.35"]
[White "Tregubov, Pavel V"]
[Black "Horvath, Dominik"]
[Result "0-1"]
[ECO "D47"]
[WhiteElo "2588"]
[BlackElo "2449"]
[PlyCount "78"]
[EventDate "2020.01.21"]
[EventType "swiss"]
[EventRounds "10"]
[EventCountry "GGB"]
[SourceTitle "BritBase"]
[Source "John Saunders"]
[SourceDate "2021.06.05"]
[SourceVersion "1"]
[SourceVersionDate "2021.06.05"]
[SourceQuality "1"]
[TimeControl "40/100:0"]
[WhiteClock "0:00:35"]
[BlackClock "0:06:55"]

1. d4 {[%emt 0:00:00]} d5 {[%emt 0:00:00]} 2. c4 {[%emt 0:00:00]} e6 {[%emt 0:
00:00]} 3. Nc3 {[%emt 0:00:00]} c6 {[%emt 0:00:00]} 4. e3 {[%emt 0:00:00]} Nf6
{[%emt 0:00:00]} 5. Nf3 {[%emt 0:00:00]} Nbd7 {[%emt 0:00:00]} 6. Bd3 {[%emt 0:
00:00]} dxc4 {[%emt 0:00:00]} 7. Bxc4 {[%emt 0:00:00]} b5 {[%emt 0:00:00]} 8.
Be2 {[%emt 0:00:00]} Bb7 {[%emt 0:00:00]} 9. O-O {[%emt 0:00:00]} Be7 {[%emt 0:
00:00]} 10. b3 {[%emt 0:00:00]} a6 {[%emt 0:00:00]} 11. Bb2 {[%emt 0:00:00]}
O-O {[%emt 0:00:00]} 12. a4 {[%emt 0:00:00]} Qb8 {[%emt 0:00:00]} 13. Rc1 {
[%emt 0:00:00]} Rd8 {[%emt 0:00:00]} 14. Qc2 {[%emt 0:00:00]} c5 {[%emt 0:00:
00]} 15. axb5 {[%emt 0:00:00]} axb5 {[%emt 0:00:00]} 16. Nxb5 {[%emt 0:00:00]}
Be4 {[%emt 0:00:00]} 17. Qc3 {[%emt 0:00:00]} Bc6 {[%emt 0:00:00]} 18. dxc5 {
[%emt 0:00:00]} Bxb5 {[%emt 0:00:00]} 19. Bxb5 {[%emt 0:00:00]} Qxb5 {[%emt 0:
00:00]} 20. c6 {[%emt 0:00:00]} Nc5 {[%emt 0:00:00]} 21. Nd4 {[%emt 0:00:00]}
Qb6 {[%emt 0:00:00]} 22. Qc4 {[%emt 0:00:00]} Nd5 {[%emt 0:00:00]} 23. Ra1 {
[%emt 0:00:00]} Na6 {[%emt 0:00:00]} 24. e4 {[%emt 0:00:00]} Ndc7 {[%emt 0:00:
00]} 25. Ra4 {[%emt 0:00:00]} Nc5 {[%emt 0:00:00]} 26. Rb4 {[%emt 0:00:00]} Qa6
{[%emt 0:00:00]} 27. Qc2 {[%emt 0:00:00]} Qd3 {[%emt 0:00:00]} 28. Qxd3 {
[%emt 0:00:00]} Nxd3 {[%emt 0:00:00]} 29. Rb7 {[%emt 0:00:00]} Bd6 {[%emt 0:00:
00]} 30. Nf3 {[%emt 0:00:14]} e5 {[%emt 0:00:00]} 31. Bc3 {[%emt 0:00:00]} Nc5
{[%emt 0:00:00]} 32. Rb4 {[%emt 0:00:00]} f6 {[%emt 0:00:00]} 33. Nd2 {[%emt 0:
00:00]} Ra6 {[%emt 0:00:00]} 34. Rc4 {[%emt 0:00:00]} Nb5 {[%emt 0:00:00]} 35.
Bb4 {[%emt 0:00:46]} Rxc6 {[%emt 0:00:00]} 36. Rfc1 {[%emt 0:00:00]} Rdc8 {
[%emt 0:00:00]} 37. Nf3 {[%emt 0:00:07]} Bf8 {[%emt 0:00:00]} 38. Kf1 {[%emt 0:
00:00]} Na7 {[%emt 0:00:00]} 39. Ra1 {[%emt 0:00:00]} Nxb3 {[%emt 0:00:00]} 0-1

[Event "Gibraltar Masters 18th"]
[Site "Gibraltar"]
[Date "2020.01.30"]
[Round "10.36"]
[White "Khotenashvili, Bela"]
[Black "Lalith, Babu M R"]
[Result "1/2-1/2"]
[ECO "E11"]
[WhiteElo "2446"]
[BlackElo "2558"]
[PlyCount "122"]
[EventDate "2020.01.21"]
[EventType "swiss"]
[EventRounds "10"]
[EventCountry "GGB"]
[SourceTitle "BritBase"]
[Source "John Saunders"]
[SourceDate "2021.06.05"]
[SourceVersion "1"]
[SourceVersionDate "2021.06.05"]
[SourceQuality "1"]
[TimeControl "40/100:0"]
[WhiteClock "0:00:49"]
[BlackClock "1:13:30"]

1. d4 {[%emt 0:00:00]} Nf6 {[%emt 0:00:00]} 2. c4 {[%emt 0:00:00]} e6 {[%emt 0:
00:00]} 3. Nf3 {[%emt 0:00:00]} d5 {[%emt 0:00:00]} 4. g3 {[%emt 0:00:00]} Bb4+
{[%emt 0:00:00]} 5. Bd2 {[%emt 0:00:00]} Be7 {[%emt 0:00:00]} 6. Bg2 {[%emt 0:
00:00]} O-O {[%emt 0:00:00]} 7. O-O {[%emt 0:00:00]} Nbd7 {[%emt 0:00:00]} 8.
Qc2 {[%emt 0:00:00]} c6 {[%emt 0:00:00]} 9. Rd1 {[%emt 0:00:00]} Ne4 {[%emt 0:
00:00]} 10. Nc3 {[%emt 0:00:00]} f5 {[%emt 0:00:00]} 11. Rab1 {[%emt 0:00:00]}
a5 {[%emt 0:00:00]} 12. a3 {[%emt 0:00:00]} g5 {[%emt 0:00:00]} 13. Nxe4 {
[%emt 0:00:00]} fxe4 {[%emt 0:00:00]} 14. Ne1 {[%emt 0:00:00]} Nb6 {[%emt 0:00:
00]} 15. c5 {[%emt 0:00:00]} Nd7 {[%emt 0:00:00]} 16. f3 {[%emt 0:00:00]} Bf6 {
[%emt 0:00:00]} 17. Bc3 {[%emt 0:00:00]} exf3 {[%emt 0:00:00]} 18. Nxf3 {
[%emt 0:00:00]} g4 {[%emt 0:00:00]} 19. Ne5 {[%emt 0:00:00]} Nxe5 {[%emt 0:00:
00]} 20. dxe5 {[%emt 0:00:00]} Bg7 {[%emt 0:00:00]} 21. Qd2 {[%emt 0:00:00]}
Qe7 {[%emt 0:00:00]} 22. Bd4 {[%emt 0:00:00]} Bd7 {[%emt 0:00:00]} 23. Rf1 {
[%emt 0:00:00]} Rf5 {[%emt 0:00:00]} 24. e4 {[%emt 0:00:00]} Qg5 {[%emt 0:00:
00]} 25. Rf4 {[%emt 0:00:00]} Rf7 {[%emt 0:00:00]} 26. Rbf1 {[%emt 0:00:00]}
Be8 {[%emt 0:00:00]} 27. R1f2 {[%emt 0:00:00]} Qh5 {[%emt 0:00:00]} 28. Qe2 {
[%emt 0:00:00]} dxe4 {[%emt 0:00:00]} 29. Bxe4 {[%emt 0:00:00]} Rd8 {[%emt 0:
00:00]} 30. Bc3 {[%emt 0:00:00]} a4 {[%emt 0:00:00]} 31. Qxg4 {[%emt 0:00:00]}
Qxg4 {[%emt 0:00:00]} 32. Rxg4 {[%emt 0:00:00]} Rxf2 {[%emt 0:00:00]} 33. Kxf2
{[%emt 0:00:00]} h5 {[%emt 0:00:00]} 34. Rg5 {[%emt 0:00:24]} Kf8 {[%emt 0:00:
00]} 35. Bg6 {[%emt 0:00:00]} Bxg6 {[%emt 0:00:00]} 36. Rxg6 {[%emt 0:00:00]}
Kf7 {[%emt 0:00:00]} 37. Rg5 {[%emt 0:00:00]} Rh8 {[%emt 0:00:00]} 38. g4 {
[%emt 0:00:38]} hxg4 {[%emt 0:00:00]} 39. Kg2 {[%emt 0:00:00]} Rh4 {[%emt 0:00:
00]} 40. Be1 {[%emt 0:00:00]} Rh8 {[%emt 0:00:00]} 41. Bg3 {[%emt 0:00:00]} Rd8
{[%emt 0:00:00]} 42. Rxg4 {[%emt 0:00:00]} Rd2+ {[%emt 0:00:00]} 43. Kf3 {
[%emt 0:00:00]} Rxb2 {[%emt 0:00:00]} 44. Rxa4 {[%emt 0:00:00]} Rb3+ {[%emt 0:
00:00]} 45. Kg4 {[%emt 0:00:00]} Re3 {[%emt 0:00:00]} 46. Rb4 {[%emt 0:00:00]}
Bxe5 {[%emt 0:00:00]} 47. Rxb7+ {[%emt 0:00:00]} Kf6 {[%emt 0:00:00]} 48. Rb6 {
[%emt 0:00:00]} Bxg3 {[%emt 0:00:00]} 49. hxg3 {[%emt 0:00:00]} Rxa3 {[%emt 0:
00:00]} 50. Rxc6 {[%emt 0:00:00]} Rc3 {[%emt 0:00:00]} 51. Kh4 {[%emt 0:00:00]}
Ke7 {[%emt 0:00:00]} 52. g4 {[%emt 0:00:00]} e5 {[%emt 0:00:00]} 53. g5 {
[%emt 0:00:00]} e4 {[%emt 0:00:00]} 54. g6 {[%emt 0:00:49]} e3 {[%emt 0:00:00]}
55. Kg3 {[%emt 0:00:00]} e2+ {[%emt 0:00:00]} 56. Kf2 {[%emt 0:00:00]} Kd7 {
[%emt 0:00:00]} 57. g7 {[%emt 0:00:00]} Re3 {[%emt 0:00:00]} 58. Rd6+ {[%emt 0:
00:53]} Kc7 {[%emt 0:00:00]} 59. Ke1 {[%emt 0:00:00]} Rg3 {[%emt 0:00:00]} 60.
Kxe2 {[%emt 0:00:00]} Rxg7 {[%emt 0:00:00]} 61. Kd3 {[%emt 0:00:00]} Rg1 {
[%emt 0:00:00]} 1/2-1/2